[Event "*** SCC Grand Prix: Titled Tuesday Blitz"]
[Site "Chess.com"]
[Date "2020.10.06"]
[Round "3"]
[White "Mikhail_Golubev"]
[Black "RusPakhom"]
[Result "1/2-1/2"]
[WhiteElo "2514"]
[BlackElo "2305"]
[TimeControl "180+1"]
[EndTime "10:28:02 PDT"]
[Termination "Game drawn by repetition"]

1. e4 {[%clk 0:03:00.9]} 1... c5 {[%clk 0:02:59.6]} 2. Nf3 {[%clk 0:03:00.6]}
2... Nc6 {[%clk 0:03:00]} 3. Nc3 {[%clk 0:03:00.2]} 3... g6 {[%clk 0:03:00]} 4.
d4 {[%clk 0:03:00.2]} 4... cxd4 {[%clk 0:03:00]} 5. Nxd4 {[%clk 0:03:00.8]} 5...
Bg7 {[%clk 0:03:00.6]} 6. Be3 {[%clk 0:03:01]} 6... Nf6 {[%clk 0:03:00.8]} 7.
Bc4 {[%clk 0:03:01.4]} 7... O-O {[%clk 0:03:00]} 8. Bb3 {[%clk 0:03:01.5]} 8...
d6 {[%clk 0:02:44.5]} 9. f3 {[%clk 0:03:00.5]} 9... Nxd4 {[%clk 0:02:44]} 10.
Bxd4 {[%clk 0:02:58.2]} 10... Be6 {[%clk 0:02:44.5]} 11. Qd2 {[%clk 0:02:57.4]}
11... Rc8 {[%clk 0:02:42.9]} 12. O-O-O {[%clk 0:02:53.9]} 12... Bxb3 {[%clk
0:02:38.1]} 13. cxb3 {[%clk 0:02:51.9]} 13... Qa5 {[%clk 0:01:53.3]} 14. Kb1
{[%clk 0:02:50.4]} 14... e6 {[%clk 0:01:35]} 15. g4 {[%clk 0:02:36.6]} 15...
Rfd8 {[%clk 0:01:20.5]} 16. h4 {[%clk 0:02:23]} 16... h5 {[%clk 0:01:09.8]} 17.
Bxf6 {[%clk 0:02:18.8]} 17... Bxf6 {[%clk 0:01:09.6]} 18. Nd5 {[%clk 0:02:17.1]}
18... Qxd2 {[%clk 0:01:03.8]} 19. Nxf6+ {[%clk 0:02:16.8]} 19... Kg7 {[%clk
0:01:04.2]} 20. Nxh5+ {[%clk 0:02:17.1]} 20... gxh5 {[%clk 0:01:04.6]} 21. Rxd2
{[%clk 0:02:17.2]} 21... hxg4 {[%clk 0:01:01.5]} 22. Rg2 {[%clk 0:02:16.7]}
22... d5 {[%clk 0:00:53.8]} 23. e5 {[%clk 0:02:00]} 23... Kg6 {[%clk 0:00:26.5]}
24. Rxg4+ {[%clk 0:01:50.2]} 24... Kf5 {[%clk 0:00:26.1]} 25. Re1 {[%clk
0:01:12.6]} 25... Rg8 {[%clk 0:00:22.1]} 26. Rxg8 {[%clk 0:00:29.6]} 26... Rxg8
{[%clk 0:00:23]} 27. Rc1 {[%clk 0:00:28.8]} 27... Rh8 {[%clk 0:00:17.5]} 28. Rc7
{[%clk 0:00:27.6]} 28... Rxh4 {[%clk 0:00:16.2]} 29. Rxf7+ {[%clk 0:00:26.4]}
29... Kxe5 {[%clk 0:00:13.6]} 30. Rxb7 {[%clk 0:00:26.2]} 30... d4 {[%clk
0:00:10.7]} 31. Kc2 {[%clk 0:00:24.2]} 31... Rh2+ {[%clk 0:00:07.8]} 32. Kd3
{[%clk 0:00:24.2]} 32... Rf2 {[%clk 0:00:06.9]} 33. Rb5+ {[%clk 0:00:23.6]}
33... Kf4 {[%clk 0:00:06.1]} 34. Kxd4 {[%clk 0:00:21.2]} 34... Rxb2 {[%clk
0:00:05.7]} 35. Rb7 {[%clk 0:00:18.1]} 35... Rxa2 {[%clk 0:00:04.2]} 36. Rf7+
{[%clk 0:00:17.1]} 36... Kg5 {[%clk 0:00:04.5]} 37. Ke5 {[%clk 0:00:15.7]} 37...
Kg6 {[%clk 0:00:04.8]} 38. Rf6+ {[%clk 0:00:15]} 38... Kg7 {[%clk 0:00:05.2]}
39. Rxe6 {[%clk 0:00:14.4]} 39... Rb2 {[%clk 0:00:05.3]} 40. Re7+ {[%clk
0:00:13.2]} 40... Kf8 {[%clk 0:00:05]} 41. Rxa7 {[%clk 0:00:12]} 41... Rxb3
{[%clk 0:00:05.5]} 42. f4 {[%clk 0:00:12]} 42... Rb5+ {[%clk 0:00:05.5]} 43. Kf6
{[%clk 0:00:10.6]} 43... Rb6+ {[%clk 0:00:05.8]} 44. Kg5 {[%clk 0:00:10.7]}
44... Rb5+ {[%clk 0:00:05.8]} 45. f5 {[%clk 0:00:11.2]} 45... Rb6 {[%clk
0:00:06.4]} 46. f6 {[%clk 0:00:10.4]} 46... Rb1 {[%clk 0:00:06.3]} 47. Ra8+
{[%clk 0:00:10.6]} 47... Kf7 {[%clk 0:00:06.1]} 48. Ra7+ {[%clk 0:00:11]} 48...
Kf8 {[%clk 0:00:06.6]} 49. Ra8+ {[%clk 0:00:11.6]} 49... Kf7 {[%clk 0:00:07.1]}
50. Ra7+ {[%clk 0:00:12.2]} 50... Kf8 {[%clk 0:00:07.3]} 1/2-1/2

[Event "*** SCC Grand Prix: Titled Tuesday Blitz"]
[Site "Chess.com"]
[Date "2020.10.06"]
[Round "3"]
[White "elohunter1999"]
[Black "TrimitziosP7"]
[Result "0-1"]
[WhiteElo "2581"]
[BlackElo "2807"]
[TimeControl "180+1"]
[EndTime "10:28:04 PDT"]
[Termination "TrimitziosP7 won by resignation"]

1. e4 {[%clk 0:03:00.9]} 1... e5 {[%clk 0:02:54.4]} 2. Nf3 {[%clk 0:03:00.8]}
2... Nf6 {[%clk 0:02:52.7]} 3. Nxe5 {[%clk 0:03:00.2]} 3... Nc6 {[%clk
0:02:44.5]} 4. Nf3 {[%clk 0:02:43.6]} 4... Nxe4 {[%clk 0:02:41.7]} 5. d4 {[%clk
0:02:43.5]} 5... d5 {[%clk 0:02:39.5]} 6. Bd3 {[%clk 0:02:43.3]} 6... Bd6 {[%clk
0:02:35.4]} 7. O-O {[%clk 0:02:28.1]} 7... O-O {[%clk 0:02:33.8]} 8. c4 {[%clk
0:01:53.2]} 8... Nf6 {[%clk 0:02:27]} 9. c5 {[%clk 0:01:48.3]} 9... Be7 {[%clk
0:02:25.1]} 10. h3 {[%clk 0:01:48.6]} 10... h6 {[%clk 0:02:20.7]} 11. Nc3 {[%clk
0:01:48.4]} 11... Be6 {[%clk 0:02:18.5]} 12. Bf4 {[%clk 0:01:47.9]} 12... b6
{[%clk 0:02:13.2]} 13. cxb6 {[%clk 0:01:47.4]} 13... axb6 {[%clk 0:02:10.5]} 14.
Qd2 {[%clk 0:01:46.4]} 14... Re8 {[%clk 0:02:00.5]} 15. Rae1 {[%clk 0:01:39.7]}
15... Bf8 {[%clk 0:01:44.7]} 16. Bb1 {[%clk 0:01:33.2]} 16... Qd7 {[%clk
0:01:36.6]} 17. Ne5 {[%clk 0:01:29.8]} 17... Nxe5 {[%clk 0:01:34]} 18. Bxe5
{[%clk 0:01:27.4]} 18... Be7 {[%clk 0:01:29.6]} 19. Qd3 {[%clk 0:01:05.6]} 19...
g6 {[%clk 0:01:27.9]} 20. Qe3 {[%clk 0:01:00.7]} 20... Kh7 {[%clk 0:01:24.5]}
21. Qf4 {[%clk 0:00:59.8]} 21... Nh5 {[%clk 0:01:20]} 22. Qf3 {[%clk 0:00:58.4]}
22... Ng7 {[%clk 0:01:12.8]} 23. Re3 {[%clk 0:00:42.4]} 23... Nf5 {[%clk
0:01:05.7]} 24. Bxf5 {[%clk 0:00:42]} 24... gxf5 {[%clk 0:01:05.9]} 25. Rfe1
{[%clk 0:00:39.2]} 25... Rg8 {[%clk 0:01:03.6]} 26. Bf4 {[%clk 0:00:36.7]} 26...
Bf6 {[%clk 0:00:56.5]} 27. Be5 {[%clk 0:00:32.5]} 27... Bg5 {[%clk 0:00:46.4]}
28. Rd3 {[%clk 0:00:26.6]} 28... Rg6 {[%clk 0:00:43.4]} 29. Bf4 {[%clk
0:00:23.8]} 29... Rag8 {[%clk 0:00:43]} 30. g3 {[%clk 0:00:22.5]} 30... c6
{[%clk 0:00:35.7]} 31. Nd1 {[%clk 0:00:22.1]} 31... Bf6 {[%clk 0:00:30.5]} 32.
Kh2 {[%clk 0:00:21.3]} 32... c5 {[%clk 0:00:29.2]} 33. Be5 {[%clk 0:00:20]}
33... Bg5 {[%clk 0:00:25.3]} 34. Nc3 {[%clk 0:00:19.5]} 34... c4 {[%clk
0:00:24.4]} 35. Rdd1 {[%clk 0:00:19.8]} 35... b5 {[%clk 0:00:24.3]} 36. Ne2
{[%clk 0:00:19.7]} 36... b4 {[%clk 0:00:23]} 37. Nf4 {[%clk 0:00:20]} 37... Bxf4
{[%clk 0:00:23]} 38. Bxf4 {[%clk 0:00:20.3]} 38... Qa4 {[%clk 0:00:22.5]} 39. a3
{[%clk 0:00:20]} 39... bxa3 {[%clk 0:00:20.3]} 40. bxa3 {[%clk 0:00:20.9]} 40...
Qc2 {[%clk 0:00:18.9]} 41. Rd2 {[%clk 0:00:18.8]} 41... Qa4 {[%clk 0:00:18.6]}
42. h4 {[%clk 0:00:19.3]} 42... Rg4 {[%clk 0:00:17.3]} 43. Re5 {[%clk
0:00:17.6]} 43... Qa5 {[%clk 0:00:15.5]} 44. Rde2 {[%clk 0:00:17.8]} 44... Qd8
{[%clk 0:00:14.1]} 45. Bc1 {[%clk 0:00:11.6]} 45... Qf6 {[%clk 0:00:09.2]} 46.
a4 {[%clk 0:00:10.7]} 46... f4 {[%clk 0:00:05.7]} 47. Bxf4 {[%clk 0:00:08.4]}
47... Rxh4+ {[%clk 0:00:05.1]} 48. gxh4 {[%clk 0:00:07.4]} 48... Qxh4+ {[%clk
0:00:05]} 0-1

[Event "*** SCC Grand Prix: Titled Tuesday Blitz"]
[Site "Chess.com"]
[Date "2020.10.06"]
[Round "3"]
[White "Unkreativ3"]
[Black "OldweakGM"]
[Result "0-1"]
[WhiteElo "2531"]
[BlackElo "2773"]
[TimeControl "180+1"]
[EndTime "10:28:06 PDT"]
[Termination "OldweakGM won by resignation"]

1. d4 {[%clk 0:03:00]} 1... d5 {[%clk 0:02:58.7]} 2. c4 {[%clk 0:03:00.3]} 2...
dxc4 {[%clk 0:02:58.9]} 3. e4 {[%clk 0:03:00.4]} 3... Nf6 {[%clk 0:02:58.9]} 4.
e5 {[%clk 0:03:00.3]} 4... Nd5 {[%clk 0:02:59.5]} 5. Bxc4 {[%clk 0:03:00.8]}
5... Nb6 {[%clk 0:02:56]} 6. Bb3 {[%clk 0:03:01]} 6... Nc6 {[%clk 0:02:54.3]} 7.
Ne2 {[%clk 0:03:01.1]} 7... Bf5 {[%clk 0:02:50.9]} 8. Nbc3 {[%clk 0:02:59.1]}
8... e6 {[%clk 0:02:51.2]} 9. O-O {[%clk 0:02:59.1]} 9... Nb4 {[%clk 0:02:44.2]}
10. Ng3 {[%clk 0:02:42.8]} 10... Bg6 {[%clk 0:02:44.1]} 11. f4 {[%clk
0:02:30.3]} 11... Nd3 {[%clk 0:02:35.8]} 12. f5 {[%clk 0:02:21.3]} 12... Qxd4+
{[%clk 0:02:33.3]} 13. Kh1 {[%clk 0:02:05.5]} 13... O-O-O {[%clk 0:01:50.6]} 14.
fxg6 {[%clk 0:01:38.6]} 14... hxg6 {[%clk 0:01:39]} 15. Qf3 {[%clk 0:01:35]}
15... Rxh2+ {[%clk 0:00:42.8]} 16. Kxh2 {[%clk 0:01:35.9]} 16... Qh4+ {[%clk
0:00:40.4]} 17. Kg1 {[%clk 0:01:35.7]} 17... Bc5+ {[%clk 0:00:39.7]} 18. Be3
{[%clk 0:01:33.2]} 18... Rh8 {[%clk 0:00:40.3]} 19. Rfd1 {[%clk 0:00:34.5]}
19... Nxe5 {[%clk 0:00:40.2]} 20. Qe4 {[%clk 0:00:23.7]} 20... Qxe4 {[%clk
0:00:38]} 21. Ngxe4 {[%clk 0:00:22.4]} 21... Bxe3+ {[%clk 0:00:38.2]} 22. Kf1
{[%clk 0:00:22.8]} 22... Nbd7 {[%clk 0:00:31.9]} 23. Ke2 {[%clk 0:00:22.6]}
23... Bb6 {[%clk 0:00:32]} 24. Rh1 {[%clk 0:00:22.7]} 24... Rg8 {[%clk
0:00:32.2]} 25. Raf1 {[%clk 0:00:20.4]} 25... Kd8 {[%clk 0:00:28.2]} 26. Ng5
{[%clk 0:00:19.8]} 26... Ke7 {[%clk 0:00:28.2]} 27. Nf3 {[%clk 0:00:16.1]} 27...
Nc6 {[%clk 0:00:28]} 28. Rh7 {[%clk 0:00:14.6]} 28... Nf6 {[%clk 0:00:27.7]} 29.
Rh3 {[%clk 0:00:14.1]} 29... Nh5 {[%clk 0:00:27]} 30. Ng5 {[%clk 0:00:14]} 30...
Nf6 {[%clk 0:00:26.5]} 31. Nge4 {[%clk 0:00:13.7]} 31... Nd4+ {[%clk 0:00:25.4]}
32. Ke1 {[%clk 0:00:12.7]} 32... Ng4 {[%clk 0:00:23.7]} 33. Ng5 {[%clk
0:00:12.2]} 33... Ne5 {[%clk 0:00:22.5]} 34. Nf3 {[%clk 0:00:08.2]} 34... Ndxf3+
{[%clk 0:00:18.4]} 35. gxf3 {[%clk 0:00:09.1]} 35... Nd3+ {[%clk 0:00:18.8]} 36.
Ke2 {[%clk 0:00:08.8]} 36... Nf4+ {[%clk 0:00:19.3]} 37. Kd2 {[%clk 0:00:09.4]}
37... Nxh3 {[%clk 0:00:19.8]} 38. Ne4 {[%clk 0:00:09.6]} 38... Nf4 {[%clk
0:00:19.8]} 39. Kc2 {[%clk 0:00:09.6]} 39... Rd8 {[%clk 0:00:20.2]} 40. Rh1
{[%clk 0:00:09.2]} 40... Nh5 {[%clk 0:00:19]} 41. Ng5 {[%clk 0:00:08.8]} 41...
c6 {[%clk 0:00:18.9]} 42. Re1 {[%clk 0:00:08.4]} 42... Bf2 {[%clk 0:00:18]} 43.
Re2 {[%clk 0:00:08.5]} 43... Bh4 {[%clk 0:00:18.1]} 44. Nxe6 {[%clk 0:00:07.3]}
44... fxe6 {[%clk 0:00:17.9]} 45. Rxe6+ {[%clk 0:00:08.2]} 45... Kf8 {[%clk
0:00:18.4]} 46. Rxg6 {[%clk 0:00:08.3]} 46... Bf6 {[%clk 0:00:18.8]} 47. Rg4
{[%clk 0:00:07.9]} 47... Rd4 {[%clk 0:00:17.5]} 48. Rg1 {[%clk 0:00:07.2]} 48...
Rh4 {[%clk 0:00:15.9]} 49. Kd3 {[%clk 0:00:04.4]} 49... Nf4+ {[%clk 0:00:15.9]}
50. Ke4 {[%clk 0:00:04.5]} 50... Ne2+ {[%clk 0:00:15.7]} 0-1

[Event "*** SCC Grand Prix: Titled Tuesday Blitz"]
[Site "Chess.com"]
[Date "2020.10.06"]
[Round "3"]
[White "Jospem"]
[Black "RobertoJBM"]
[Result "1-0"]
[WhiteElo "2989"]
[BlackElo "2730"]
[TimeControl "180+1"]
[EndTime "10:28:08 PDT"]
[Termination "Jospem won on time"]

1. e4 {[%clk 0:02:58.9]} 1... c6 {[%clk 0:02:59.6]} 2. d4 {[%clk 0:02:58.7]}
2... d5 {[%clk 0:03:00.5]} 3. exd5 {[%clk 0:02:59.6]} 3... cxd5 {[%clk
0:03:00.5]} 4. Bd3 {[%clk 0:03:00.2]} 4... Nc6 {[%clk 0:03:00.3]} 5. c3 {[%clk
0:03:00.3]} 5... Nf6 {[%clk 0:03:01.2]} 6. h3 {[%clk 0:03:00.2]} 6... g6 {[%clk
0:03:00.9]} 7. Nf3 {[%clk 0:03:00.5]} 7... Bf5 {[%clk 0:03:00.9]} 8. O-O {[%clk
0:03:01]} 8... Bxd3 {[%clk 0:02:59.6]} 9. Qxd3 {[%clk 0:03:01.9]} 9... Bg7
{[%clk 0:03:00.3]} 10. Bf4 {[%clk 0:03:02.4]} 10... O-O {[%clk 0:03:00.4]} 11.
Nbd2 {[%clk 0:03:02.6]} 11... e6 {[%clk 0:03:00.4]} 12. Rfe1 {[%clk 0:03:02.5]}
12... Re8 {[%clk 0:02:58.8]} 13. a4 {[%clk 0:03:02.6]} 13... b6 {[%clk 0:02:57]}
14. Ne5 {[%clk 0:02:56.6]} 14... Nxe5 {[%clk 0:02:52.3]} 15. Bxe5 {[%clk
0:02:57.5]} 15... Nd7 {[%clk 0:02:51]} 16. Bxg7 {[%clk 0:02:57.5]} 16... Kxg7
{[%clk 0:02:51.9]} 17. Nf3 {[%clk 0:02:57.1]} 17... Qc7 {[%clk 0:02:49.1]} 18.
h4 {[%clk 0:02:56.4]} 18... Qf4 {[%clk 0:02:44.2]} 19. g3 {[%clk 0:02:51.9]}
19... Qf5 {[%clk 0:02:42.4]} 20. Qe2 {[%clk 0:02:44.8]} 20... Qg4 {[%clk
0:02:35.3]} 21. Qe3 {[%clk 0:02:41.9]} 21... Qf5 {[%clk 0:02:34]} 22. Kg2 {[%clk
0:02:36.2]} 22... Rac8 {[%clk 0:02:31.5]} 23. Qe2 {[%clk 0:02:31]} 23... Rc7
{[%clk 0:02:27.4]} 24. a5 {[%clk 0:02:31]} 24... Rb8 {[%clk 0:02:22.2]} 25. axb6
{[%clk 0:02:30.3]} 25... Rxb6 {[%clk 0:02:21.9]} 26. Ra2 {[%clk 0:02:24.4]}
26... Rcb7 {[%clk 0:02:15.9]} 27. Rea1 {[%clk 0:02:17.6]} 27... Qe4 {[%clk
0:02:15.3]} 28. Qxe4 {[%clk 0:01:59.1]} 28... dxe4 {[%clk 0:02:16.2]} 29. Nd2
{[%clk 0:01:59.5]} 29... Rxb2 {[%clk 0:02:00.8]} 30. Rxb2 {[%clk 0:01:49.8]}
30... Rxb2 {[%clk 0:02:01.7]} 31. Nxe4 {[%clk 0:01:50.2]} 31... Nf6 {[%clk
0:01:48]} 32. Nxf6 {[%clk 0:01:28.5]} 32... Kxf6 {[%clk 0:01:48.9]} 33. Rxa7
{[%clk 0:01:29]} 33... Rc2 {[%clk 0:01:48.7]} 34. Rc7 {[%clk 0:01:29.1]} 34...
h5 {[%clk 0:01:48.8]} 35. Kf3 {[%clk 0:01:28.3]} 35... Ra2 {[%clk 0:01:33.4]}
36. Ke3 {[%clk 0:01:27]} 36... Rb2 {[%clk 0:01:33]} 37. Rc6 {[%clk 0:01:25.5]}
37... Ke7 {[%clk 0:01:32.7]} 38. Rc7+ {[%clk 0:01:24.9]} 38... Kf6 {[%clk
0:01:32.8]} 39. c4 {[%clk 0:00:53.7]} 39... Rb3+ {[%clk 0:01:28.9]} 40. Kf4
{[%clk 0:00:53.8]} 40... Rc3 {[%clk 0:01:11.3]} 41. c5 {[%clk 0:00:45.6]} 41...
Rc4 {[%clk 0:00:58.6]} 42. Ke3 {[%clk 0:00:43.7]} 42... Rc3+ {[%clk 0:00:56.8]}
43. Kd2 {[%clk 0:00:40.6]} 43... Rf3 {[%clk 0:00:52.9]} 44. Ke2 {[%clk
0:00:35.7]} 44... Rc3 {[%clk 0:00:52.8]} 45. f3 {[%clk 0:00:31.4]} 45... Ra3
{[%clk 0:00:43.9]} 46. g4 {[%clk 0:00:27.7]} 46... hxg4 {[%clk 0:00:40.4]} 47.
fxg4 {[%clk 0:00:28.6]} 47... Rh3 {[%clk 0:00:39.5]} 48. g5+ {[%clk 0:00:28.4]}
48... Kf5 {[%clk 0:00:20.9]} 49. Rxf7+ {[%clk 0:00:24.1]} 49... Ke4 {[%clk
0:00:21]} 50. c6 {[%clk 0:00:21.6]} 50... Kxd4 {[%clk 0:00:14.4]} 51. Rd7+
{[%clk 0:00:18.2]} 51... Ke5 {[%clk 0:00:13.4]} 52. c7 {[%clk 0:00:16.2]} 52...
Rc3 {[%clk 0:00:13.3]} 53. h5 {[%clk 0:00:13.9]} 53... gxh5 {[%clk 0:00:10.4]}
54. g6 {[%clk 0:00:14.3]} 1-0

[Event "*** SCC Grand Prix: Titled Tuesday Blitz"]
[Site "Chess.com"]
[Date "2020.10.06"]
[Round "3"]
[White "Gabrielian_Artur"]
[Black "Brave_spirit12"]
[Result "1-0"]
[WhiteElo "2751"]
[BlackElo "2486"]
[TimeControl "180+1"]
[EndTime "10:28:08 PDT"]
[Termination "Gabrielian_Artur won by resignation"]

1. e4 {[%clk 0:03:00.9]} 1... e6 {[%clk 0:02:59.5]} 2. d4 {[%clk 0:02:58]} 2...
d5 {[%clk 0:02:59.9]} 3. e5 {[%clk 0:02:58.6]} 3... c5 {[%clk 0:02:59]} 4. c3
{[%clk 0:02:59.2]} 4... Nc6 {[%clk 0:02:58.7]} 5. Nf3 {[%clk 0:02:59.6]} 5...
Qb6 {[%clk 0:02:58.7]} 6. a3 {[%clk 0:02:59.4]} 6... f6 {[%clk 0:02:58.4]} 7.
Be2 {[%clk 0:02:58.2]} 7... fxe5 {[%clk 0:02:46.7]} 8. dxe5 {[%clk 0:02:58.2]}
8... g6 {[%clk 0:02:47.6]} 9. O-O {[%clk 0:02:55.5]} 9... Bg7 {[%clk 0:02:46.6]}
10. Re1 {[%clk 0:02:55.9]} 10... Nh6 {[%clk 0:02:45.3]} 11. c4 {[%clk
0:02:46.9]} 11... d4 {[%clk 0:02:30.4]} 12. Bd3 {[%clk 0:02:46.9]} 12... Nf7
{[%clk 0:02:27.2]} 13. Bf4 {[%clk 0:02:40.2]} 13... O-O {[%clk 0:02:26.6]} 14.
Qc2 {[%clk 0:02:26.9]} 14... Bd7 {[%clk 0:02:07.5]} 15. Nbd2 {[%clk 0:02:25.9]}
15... Ne7 {[%clk 0:02:01.9]} 16. h4 {[%clk 0:02:19.2]} 16... Nh6 {[%clk
0:01:56.3]} 17. Bg5 {[%clk 0:02:16.9]} 17... Nef5 {[%clk 0:01:54.5]} 18. Ne4
{[%clk 0:02:16.7]} 18... Bc6 {[%clk 0:01:48.5]} 19. Rab1 {[%clk 0:02:04.1]}
19... a5 {[%clk 0:01:42.6]} 20. b3 {[%clk 0:02:03.3]} 20... Rf7 {[%clk
0:01:33.3]} 21. Qd2 {[%clk 0:01:54.9]} 21... Ng4 {[%clk 0:01:27.1]} 22. b4
{[%clk 0:01:47]} 22... cxb4 {[%clk 0:01:03.7]} 23. axb4 {[%clk 0:01:47]} 23...
a4 {[%clk 0:01:03.6]} 24. c5 {[%clk 0:01:44.8]} 24... Qc7 {[%clk 0:00:58.6]} 25.
Nd6 {[%clk 0:01:45.1]} 25... Bxf3 {[%clk 0:00:50]} 26. gxf3 {[%clk 0:01:45]}
26... Nxe5 {[%clk 0:00:48.5]} 27. Rxe5 {[%clk 0:01:17.5]} 27... Bxe5 {[%clk
0:00:43.7]} 28. Nxf7 {[%clk 0:01:17.1]} 28... Qxf7 {[%clk 0:00:44.6]} 29. Bc4
{[%clk 0:01:15.7]} 29... h6 {[%clk 0:00:37.5]} 30. Qa2 {[%clk 0:01:05]} 30...
Re8 {[%clk 0:00:28.8]} 31. Re1 {[%clk 0:01:04.9]} 31... Qc7 {[%clk 0:00:07.3]}
32. Bxe6+ {[%clk 0:01:02.4]} 32... Kg7 {[%clk 0:00:06.5]} 33. Bxf5 {[%clk
0:01:00.6]} 33... Bh2+ {[%clk 0:00:05.2]} 34. Kf1 {[%clk 0:01:01]} 34... Rxe1+
{[%clk 0:00:04.8]} 35. Kxe1 {[%clk 0:01:01.3]} 35... hxg5 {[%clk 0:00:05.4]} 36.
Be4 {[%clk 0:00:58.8]} 36... gxh4 {[%clk 0:00:05.5]} 37. Qxa4 {[%clk 0:00:58.7]}
37... Be5 {[%clk 0:00:05.3]} 38. Qe8 {[%clk 0:00:58.2]} 38... h3 {[%clk
0:00:01.9]} 39. Qxg6+ {[%clk 0:00:57.7]} 39... Kf8 {[%clk 0:00:02.8]} 40. Qf5+
{[%clk 0:00:57.7]} 40... Ke7 {[%clk 0:00:03.1]} 41. Qxh3 {[%clk 0:00:57.6]}
41... b6 {[%clk 0:00:03.6]} 42. Qh7+ {[%clk 0:00:57.5]} 42... Kd8 {[%clk
0:00:04]} 43. Qg8+ {[%clk 0:00:57.8]} 43... Ke7 {[%clk 0:00:04.2]} 44. c6 {[%clk
0:00:58.3]} 44... Qd6 {[%clk 0:00:03.6]} 45. Kf1 {[%clk 0:00:56.5]} 45... Qxb4
{[%clk 0:00:02.4]} 46. Qh7+ {[%clk 0:00:56.7]} 46... Kd6 {[%clk 0:00:02.9]} 47.
Qd7+ {[%clk 0:00:56.3]} 47... Kc5 {[%clk 0:00:03.4]} 48. Qe7+ {[%clk 0:00:56.7]}
48... Bd6 {[%clk 0:00:01.7]} 49. Qg5+ {[%clk 0:00:54.6]} 49... Kc4 {[%clk
0:00:02.2]} 50. Kg2 {[%clk 0:00:51.2]} 50... Kc3 {[%clk 0:00:02.4]} 51. Qc1+
{[%clk 0:00:50.6]} 51... Kb3 {[%clk 0:00:02.2]} 52. Bd5+ {[%clk 0:00:51]} 52...
Ka4 {[%clk 0:00:01.8]} 53. c7 {[%clk 0:00:51.2]} 53... Bxc7 {[%clk 0:00:01.2]}
54. Qc6+ {[%clk 0:00:50.3]} 54... Ka5 {[%clk 0:00:01.2]} 55. Qa8+ {[%clk
0:00:49.9]} 55... Kb5 {[%clk 0:00:01.3]} 56. Qc6+ {[%clk 0:00:50]} 56... Ka5
{[%clk 0:00:02.2]} 57. Qxc7 {[%clk 0:00:50.6]} 57... Qc5 {[%clk 0:00:03.1]} 58.
Qxc5+ {[%clk 0:00:46.5]} 58... bxc5 {[%clk 0:00:04]} 59. Kf1 {[%clk 0:00:46.4]}
59... Kb4 {[%clk 0:00:04.3]} 60. Ke2 {[%clk 0:00:46.8]} 60... Kc3 {[%clk
0:00:04.5]} 61. f4 {[%clk 0:00:45.4]} 61... c4 {[%clk 0:00:04.2]} 62. f5 {[%clk
0:00:44.6]} 62... d3+ {[%clk 0:00:04.4]} 63. Kd1 {[%clk 0:00:43.6]} 63... Kb2
{[%clk 0:00:03.2]} 64. Bxc4 {[%clk 0:00:43.6]} 1-0

[Event "*** SCC Grand Prix: Titled Tuesday Blitz"]
[Site "Chess.com"]
[Date "2020.10.06"]
[Round "3"]
[White "Reader777"]
[Black "bocah_sakit"]
[Result "0-1"]
[WhiteElo "2651"]
[BlackElo "2833"]
[TimeControl "180+1"]
[EndTime "10:28:12 PDT"]
[Termination "bocah_sakit won by resignation"]

1. d4 {[%clk 0:03:00.9]} 1... Nf6 {[%clk 0:03:00]} 2. c4 {[%clk 0:03:01.3]} 2...
g6 {[%clk 0:02:59.8]} 3. Nc3 {[%clk 0:03:01]} 3... Bg7 {[%clk 0:03:00.7]} 4. e4
{[%clk 0:03:01.2]} 4... d6 {[%clk 0:03:01.6]} 5. f4 {[%clk 0:03:01.5]} 5... O-O
{[%clk 0:03:00.5]} 6. Nf3 {[%clk 0:03:01.5]} 6... c5 {[%clk 0:03:00.5]} 7. d5
{[%clk 0:03:01.7]} 7... e6 {[%clk 0:03:01.1]} 8. Be2 {[%clk 0:03:01.9]} 8...
exd5 {[%clk 0:03:01.8]} 9. cxd5 {[%clk 0:03:02.1]} 9... Re8 {[%clk 0:03:02.4]}
10. e5 {[%clk 0:03:01.9]} 10... dxe5 {[%clk 0:03:03.3]} 11. fxe5 {[%clk
0:03:02.1]} 11... Ng4 {[%clk 0:03:03.9]} 12. e6 {[%clk 0:03:02.1]} 12... fxe6
{[%clk 0:02:53]} 13. d6 {[%clk 0:03:02.3]} 13... Nc6 {[%clk 0:02:51.2]} 14. O-O
{[%clk 0:03:01.4]} 14... Bd7 {[%clk 0:02:48.2]} 15. Ne4 {[%clk 0:02:58.6]} 15...
Qb6 {[%clk 0:02:37.9]} 16. Kh1 {[%clk 0:02:50.1]} 16... Rf8 {[%clk 0:02:33.4]}
17. h3 {[%clk 0:02:22.6]} 17... Nge5 {[%clk 0:02:32.9]} 18. Be3 {[%clk
0:02:22.4]} 18... Nxf3 {[%clk 0:02:29.6]} 19. Bxf3 {[%clk 0:02:21.9]} 19... Nd4
{[%clk 0:02:29.2]} 20. Rc1 {[%clk 0:02:19.9]} 20... Rac8 {[%clk 0:02:17.7]} 21.
Bg4 {[%clk 0:02:03.5]} 21... Nf5 {[%clk 0:02:17.7]} 22. Bxf5 {[%clk 0:01:59.4]}
22... exf5 {[%clk 0:02:15.6]} 23. Nxc5 {[%clk 0:01:57.6]} 23... Bc6 {[%clk
0:02:09.2]} 24. Qd2 {[%clk 0:01:10.1]} 24... Qxb2 {[%clk 0:02:04.6]} 25. Qxb2
{[%clk 0:01:04.4]} 25... Bxb2 {[%clk 0:02:05.5]} 26. Rb1 {[%clk 0:01:04.9]}
26... Bf6 {[%clk 0:01:58.5]} 27. Nxb7 {[%clk 0:01:03]} 27... Be4 {[%clk
0:01:51.1]} 28. Rb3 {[%clk 0:00:56.2]} 28... Rc2 {[%clk 0:01:51.5]} 29. Rf2
{[%clk 0:00:54.4]} 29... f4 {[%clk 0:01:39.7]} 30. Rxc2 {[%clk 0:00:32.3]} 30...
Bxc2 {[%clk 0:01:40.6]} 31. Bxf4 {[%clk 0:00:30.5]} 31... Bxb3 {[%clk
0:01:36.9]} 32. axb3 {[%clk 0:00:31.2]} 32... Kf7 {[%clk 0:01:33.6]} 33. Be3
{[%clk 0:00:25]} 33... Ke6 {[%clk 0:01:25.7]} 34. Bxa7 {[%clk 0:00:23.4]} 34...
Rf7 {[%clk 0:01:25.8]} 35. Nc5+ {[%clk 0:00:22.6]} 35... Kxd6 {[%clk 0:01:25.4]}
36. Ne4+ {[%clk 0:00:22.3]} 36... Ke5 {[%clk 0:01:15.4]} 37. Nxf6 {[%clk
0:00:22.9]} 37... Rxa7 {[%clk 0:01:15.6]} 38. Ng4+ {[%clk 0:00:20.1]} 38... Kf4
{[%clk 0:01:13.2]} 39. Nf6 {[%clk 0:00:19.7]} 39... h5 {[%clk 0:01:04.4]} 40.
Kh2 {[%clk 0:00:19.7]} 40... Ra2 {[%clk 0:01:01.9]} 41. Nd5+ {[%clk 0:00:17.6]}
41... Ke5 {[%clk 0:01:01.5]} 42. Ne3 {[%clk 0:00:17]} 42... Kd4 {[%clk
0:00:52.6]} 43. Nc4 {[%clk 0:00:16.3]} 43... h4 {[%clk 0:00:50.6]} 44. Nd6
{[%clk 0:00:15.4]} 44... Rb2 {[%clk 0:00:48]} 45. Nb5+ {[%clk 0:00:11.5]} 45...
Ke3 {[%clk 0:00:46.5]} 46. Nc3 {[%clk 0:00:11.4]} 46... Rxb3 {[%clk 0:00:46.4]}
47. Nd5+ {[%clk 0:00:12]} 47... Ke4 {[%clk 0:00:43.9]} 48. Nf6+ {[%clk
0:00:12.2]} 48... Ke3 {[%clk 0:00:39.1]} 49. Nd5+ {[%clk 0:00:11.7]} 49... Kf2
{[%clk 0:00:38.8]} 50. Nf4 {[%clk 0:00:09.8]} 50... Rg3 {[%clk 0:00:38.8]} 51.
Kh1 {[%clk 0:00:09.7]} 51... g5 {[%clk 0:00:37.4]} 52. Ng6 {[%clk 0:00:05.3]}
52... Rxg2 {[%clk 0:00:36.9]} 53. Ne5 {[%clk 0:00:05.6]} 53... Rg3 {[%clk
0:00:35.7]} 54. Kh2 {[%clk 0:00:05.3]} 54... Ra3 {[%clk 0:00:33.5]} 55. Ng4+
{[%clk 0:00:05]} 55... Kf3 {[%clk 0:00:33.1]} 56. Ne5+ {[%clk 0:00:05.3]} 56...
Ke4 {[%clk 0:00:33.7]} 57. Ng4 {[%clk 0:00:05.6]} 57... Kf4 {[%clk 0:00:33.7]}
58. Nf2 {[%clk 0:00:05.2]} 58... Kf3 {[%clk 0:00:33.4]} 59. Ng4 {[%clk
0:00:05.3]} 59... Ra2+ {[%clk 0:00:33.8]} 60. Kh1 {[%clk 0:00:05.9]} 60... Kg3
{[%clk 0:00:34.5]} 0-1